fUSD/lending_fUSD_20240607
["ID","MTS","AMOUNT","RATE_DAILY","PERIOD"]
[328720260,1717723847538,-500.0,0.00029863,4]
[328720261,1717723847548,-500.0,0.00029863,4]
[328720262,1717723847557,-500.0,0.00029863,4]
[328720263,1717723847566,-509.16099093,0.00029863,4]
[328720264,1717723847576,-500.0,0.00029863,4]
[328720265,1717723847587,-500.0,0.00029863,4]
[328720266,1717723847596,-500.0,0.00029863,4]
[328720267,1717723847605,-500.0,0.00029863,4]
[328720268,1717723847615,-500.0,0.00029863,4]
[328720269,1717723847625,-500.0,0.00029863,4]
[328720270,1717723847634,-415.33,0.00029863,4]
[328720271,1717723847644,-500.0,0.00029863,4]
[328720272,1717723847653,-500.0,0.00029863,4]
[328720273,1717723847662,-500.0,0.00029863,4]
[328720274,1717723847672,-500.0,0.00029863,4]
[328720275,1717723847683,-500.0,0.00029863,4]
[328720276,1717723847693,-500.0,0.00029863,4]
[328720277,1717723847702,-500.0,0.00029863,4]
[328720278,1717723847713,-500.0,0.00029863,4]
[328720279,1717723847722,-500.0,0.00029863,4]
[328720280,1717723847733,-500.0,0.00029863,4]
[328720281,1717723847743,-500.0,0.00029863,4]
[328720282,1717723847753,-500.0,0.00029863,4]
[328720283,1717723847764,-500.0,0.00029863,4]
[328720284,1717723847773,-500.0,0.00029863,4]
[328720285,1717723847783,-500.0,0.00029863,4]
[328720286,1717723847793,-500.0,0.00029863,4]
[328720287,1717723847803,-500.0,0.00029863,4]
[328720288,1717723847811,-213.76983404,0.00029863,4]
[328720289,1717723847954,-286.23016596,0.00029863,4]
[328720290,1717723847964,-500.0,0.00029863,4]
[328720291,1717723847975,-355.48931282,0.00029863,4]
[328720292,1717723847986,-144.51068718,0.00029863,4]
[328720293,1717723847997,-500.0,0.00029863,4]
[328720294,1717723848010,-500.0,0.00029863,4]
[328720295,1717723848021,-500.0,0.00029863,4]
[328720296,1717723848030,-500.0,0.00029863,4]
[328720297,1717723848040,-382.0093499,0.00029863,4]
[328720298,1717723868548,-999.99174,0.00015,2]
[328720299,1717723880356,204.19957226,4e-05,2]
[328720305,1717723898981,1042.33917751,0.00014,2]
[328720306,1717723918481,1042.33917751,0.00014,2]
[328720307,1717723936487,1042.33917751,0.00014,2]
[328720308,1717723954505,1042.33917751,0.00014,2]
[328720310,1717723976491,1042.33917751,0.00014,2]
[328720311,1717723996497,761.34575708,0.00014,2]
[328720314,1717724027162,36288.29523342,0.00014,2]
[328720339,1717724373850,300.0,0.0002836,120]
[328720389,1717725034779,-155.0,0.00016755,2]
[328720390,1717725034789,-104.37769393,0.00016756,2]
[328720391,1717725034801,-50.62230607,0.00016756,2]
[328720392,1717725034811,-164.77566898,0.00016757,2]
[328720393,1717725034820,-1002.0938,0.00016758,2]
[328720394,1717725034830,-300.0,0.00016858,2]
[328720395,1717725034839,-1276.37631732,0.00017225,2]
[328720396,1717725034849,-150.0,0.00017973,2]
[328720397,1717725034859,-1111.81925699,0.00018,2]
[328720398,1717725034868,-7922.23,0.000185,2]
[328720399,1717725034878,-204.21,0.000185,2]
[328720400,1717725034888,-3891.69438003,0.00019451,2]
[328720401,1717725034897,-1761.06242246,0.0002,2]
[328720402,1717725034907,-6329.46424947,0.0002,2]
[328720403,1717725034917,-510.21195869,0.0002,2]
[328720404,1717725034926,-682.99738881,0.0002,2]
[328720405,1717725034936,-155.0,0.0002,2]
[328720406,1717725034945,-226.6238354,0.000201,2]
[328720407,1717725034955,-456.2,0.00020827,2]
[328720408,1717725034965,-1440.58421068,0.00021,2]
[328720409,1717725034975,-5502.8423615,0.000216,5]
[328720410,1717725034987,-4618.40103546,0.000216,5]
[328720411,1717725034998,-716.81786088,0.000216,5]
[328720412,1717725035011,-467.93874216,0.000216,5]
[328720413,1717725035020,-208.16125784,0.00022499,2]
[328720414,1717725035032,-582.04346233,0.00022499,2]
[328720415,1717725035042,-18.36626353,0.000225,2]
[328720416,1717725035054,-789.29286824,0.000225,2]
[328720649,1717725038418,-155.0,0.00020826,2]
[328720650,1717725038431,-3822.124177,0.000225,2]
[328720651,1717725038447,-401.77932287,0.000225,2]
[328720652,1717725040851,-810.87352091,0.000225,2]
[328720653,1717725041062,-4862.9371042,0.000225,2]
[328720654,1717725041072,-250.0,0.0002282,2]
[328720655,1717725041082,-250.0,0.00022941,2]
[328720656,1717725041091,-150.01,0.00022944,2]
[328720657,1717725041101,-268.37,0.00022973,2]
[328720658,1717725041112,-176.8685142,0.00023024,2]
[328720659,1717725041122,-175.89,0.00023025,2]
[328720660,1717725041132,-456.2,0.00023091,2]
[328720661,1717725041141,-1204.09798254,0.00023457,2]
[328720662,1717725041151,-1482.84153859,0.000235,2]
[328720663,1717725041174,-999.99174,0.000235,2]
[328720664,1717725041271,-1270.07462141,0.000235,2]
[328720665,1717725041281,-1151.30623847,0.000236,2]
[328720687,1717725042357,-531.05475004,0.000236,2]
[328720691,1717725043180,-4131.0243461,0.000236,2]
[328720692,1717725043402,-29426.51523216,0.000236,2]
[328720693,1717725043684,-20519.56212299,0.000236,2]
[328720694,1717725043693,-23900.0,0.0002371,2]
[328720695,1717725043703,-370.74,0.00024384,2]
[328720696,1717725043713,-165.97,0.00024384,2]
[328720697,1717725043722,-506.55,0.000247,2]
[328720698,1717725043732,-6794.18529165,0.000249,2]
[328720699,1717725043742,-159.01858413,0.00025,2]
[328720700,1717725043751,-325.85502295,0.00025,2]
[328720701,1717725043761,-222.995,0.00025015,2]
[328720702,1717725043771,-456.2,0.00025355,2]
[328720703,1717725043780,-268.37,0.00025712,2]
[328720704,1717725043789,-180.0,0.00025956,2]
[328720705,1717725043800,-1000.0,0.00026422,2]
[328720706,1717725043810,-250.0,0.0002678,2]
[328720707,1717725043819,-245.68,0.00027001,2]
[328720708,1717725043829,-177.15,0.00027397,2]
[328720709,1717725043839,-30161.30838291,0.0002748,2]
[328720710,1717725043849,-456.2,0.00027619,2]
[328720711,1717725043859,-167.565679,0.00027728,2]
[328720712,1717725043868,-4403.625748,0.00027728,2]
[328720713,1717725043877,-183.487911,0.00027728,2]
[328720714,1717725043886,-157.327532,0.00027728,2]
[328720715,1717725043896,-4385.547484,0.00027728,2]
[328720716,1717725043906,-468.72828225,0.00028074,2]
[328720717,1717725043915,-4403.625748,0.00028075,2]
[328720718,1717725043924,-4385.547484,0.00028075,2]
[328720719,1717725043934,-157.327532,0.00028191,2]
[328720720,1717725043944,-168.01,0.00028329,2]
[328720721,1717725043953,-169.07823965,0.0002836,2]
[328720722,1717725043963,-337.92580816,0.0002836,7]
[328720723,1717725043974,-34972.42451795,0.0002836,2]
[328720724,1717725043984,-1203.42195458,0.0002836,2]
[328720725,1717725043993,-500.0,0.0002836,2]
[328720726,1717725044003,-1497.6624577,0.0002836,14]
[328720727,1717725044012,-1046.71514559,0.0002836,2]
[328720728,1717725044022,-446.79515573,0.0002836,2]
[328720729,1717725044032,-4403.625748,0.00028422,2]
[328720730,1717725044042,-4385.547484,0.00028422,2]
[328720731,1717725044051,-183.487911,0.00028422,2]
[328720732,1717725044061,-268.37,0.00028452,2]
[328720733,1717725044071,-165.16416,0.00028493,14]
[328720734,1717725044080,-2018.0355523,0.00028498,2]
[328720735,1717725044090,-157.327532,0.00028653,2]
[328720736,1717725044099,-229.66,0.00028758,2]
[328720737,1717725044108,-576.18,0.00028758,2]
[328720738,1717725044117,-4403.625748,0.00028768,2]
[328720739,1717725044127,-4385.547484,0.00028768,2]
[328720740,1717725044136,-5000.0,0.000288,2]
[328720741,1717725044146,-1000.0,0.000288,2]
[328720742,1717725044361,-265.97843345,0.00028999,2]
[328720743,1717725044371,-1138.94192362,0.00029,2]
[328720744,1717725044381,-822.63361524,0.00029,2]
[328720745,1717725044391,-3000.0,0.00029,2]
[328720746,1717725044401,-155744.35527606,0.00029,3]
[328720754,1717725046224,-5674.93048505,0.00029,3]
[328720769,1717725095305,241.5254,0.00016656,2]
[328720774,1717725163657,758.46634,0.00016656,2]
[328720776,1717725614430,946.8695797,0.0003,40]
[328720780,1717725989313,-1702.50259548,0.00016556,2]
[328720781,1717725989334,-297.49740452,0.00016556,2]
[328720782,1717725991180,-2000.0,0.00016556,2]
[328720783,1717725992562,-686.99855502,0.00016556,2]
[328720784,1717725992584,-155.24,0.00016646,2]
[328720785,1717725992607,-150.0,0.00016655,2]
[328720786,1717725992628,-150.0,0.00016656,2]
[328720787,1717725992649,-150.0,0.00016656,2]
[328720788,1717725992670,-150.0,0.00016656,2]
[328720789,1717725992691,-150.0,0.00016656,2]
[328720790,1717725992711,-150.0,0.00016656,2]
[328720791,1717725992731,-150.0,0.00016656,2]
[328720792,1717725992753,-107.76144498,0.00016656,2]
[328720793,1717725994026,-42.23855502,0.00016656,2]
[328720794,1717725994046,-150.0,0.00016656,2]
[328720795,1717725994066,-150.0,0.00016656,2]
[328720796,1717725994086,-150.0,0.00016656,2]
[328720797,1717725994109,-150.0,0.00016656,2]
[328720798,1717725994131,-150.0,0.00016656,2]
[328720799,1717725994151,-150.0,0.00016656,2]
[328720800,1717725994171,-150.0,0.00016656,2]
[328720801,1717725994191,-150.0,0.00016656,2]
[328720802,1717725994212,-150.0,0.00016656,2]
[328720803,1717725994232,-150.0,0.00016656,2]
[328720804,1717725994253,-150.0,0.00016656,2]
[328720805,1717725994273,-150.0,0.00016656,2]
[328720806,1717725994295,-150.0,0.00016656,2]
[328720807,1717725994316,-7.76144498,0.00016656,2]
[328720808,1717725996068,-278.96510323,0.00016656,2]
[328720812,1717726075509,-1702.50259544,0.00017769,2]
[328720813,1717726075534,-297.49740456,0.00018982,2]
[328720814,1717726087330,-500.0,0.00018982,2]
[328720816,1717726170525,308.42916033,0.0002836,120]
[328720855,1717726232358,-226.01906668,0.00018971,2]
[328720856,1717726232368,-155.25,0.00018972,2]
[328720857,1717726232380,-150.0,0.00018981,2]
[328720858,1717726232389,-78.55442645,0.00018982,2]
[328720859,1717726232401,-826.45076443,0.00018982,2]
[328720860,1717726232410,-1702.50259544,0.00020195,2]
[328720861,1717726232421,-235.52,0.00021139,2]
[328720862,1717726232431,-1702.50259544,0.00021408,2]
[328720863,1717726232440,-506.44469351,0.000219,2]
[328720864,1717726232450,-150.0,0.00021917,2]
[328720865,1717726232460,-300.0,0.00021917,2]
[328720866,1717726232469,-450.0,0.00021917,2]
[328720867,1717726232479,-600.0,0.00021917,2]
[328720868,1717726232488,-751.95027549,0.00021917,2]
[328720869,1717726232500,-200490.72043391,0.00021919,2]
[328720870,1717726232511,-3879.52313779,0.00021919,2]
[328720871,1717726232522,-293.26397614,0.00021919,2]
[328720872,1717726232533,-650.23905597,0.00021919,2]
[328720873,1717726232545,-860.35582076,0.00021919,2]
[328720874,1717726232557,-447.53187127,0.00021919,2]
[328720875,1717726232569,-765.5160698,0.00021919,2]
[328720876,1717726232581,-1697.03758553,0.00021919,2]
[328720877,1717726232615,-550.49255264,0.00021919,2]
[328720878,1717726232627,-1381.95190557,0.00021919,2]
[328721073,1717726238131,-4301.317335,0.00021919,2]
[328721076,1717726238144,-240548.85724989,0.00021919,2]
[328721082,1717726238353,-1362.06489096,0.00021919,2]
[328721083,1717726238365,-4013.88696,0.00021919,2]
[328721084,1717726238376,-813.90015,0.00021919,2]
[328721085,1717726238388,-555.65393378,0.00021919,2]
[328721086,1717726238573,-4209.38284784,0.00021919,2]
[328721087,1717726238585,-49990.44487826,0.00021919,2]
[328721130,1717726241163,-454.18508886,0.00021919,2]
[328721132,1717726241174,-293.7,0.00021919,2]
[328721137,1717726241367,-342.108,0.00021919,2]
[328721138,1717726241378,-11670.97175327,0.00021919,2]
[328721139,1717726241412,-960.39317097,0.00021919,2]
[328721140,1717726241423,-706.55085503,0.00021919,2]
[328721141,1717726241434,-21267.40477664,0.00021919,2]
[328721142,1717726241445,-934.80926867,0.00021919,2]
[328721143,1717726241587,-1809.30450164,0.00021919,2]
[328721144,1717726241599,-1179.86580013,0.00021919,2]
[328721145,1717726241611,-489.59093316,0.00021919,2]
[328721146,1717726241623,-583.612171,0.00021919,2]
[328721147,1717726241635,-753.000003,0.00021919,2]
[328721148,1717726241648,-1841.39487998,0.00021919,2]
[328721149,1717726241855,-1696.31219866,0.00021919,2]
[328721150,1717726241869,-766.88999997,0.00021919,2]
[328721151,1717726241880,-7976.82680112,0.00021919,2]
[328721152,1717726242627,-120423.39169184,0.00021919,2]
[328721153,1717726242636,-460.95,0.0002192,2]
[328721154,1717726242646,-460.95,0.0002192,2]
[328721155,1717726242655,-460.95,0.0002192,2]
[328721156,1717726242664,-460.95,0.0002192,2]
[328721157,1717726242674,-460.95,0.0002192,2]
[328721158,1717726242683,-790.20472017,0.00022,2]
[328721159,1717726242693,-999.9917,0.00022299,2]
[328721160,1717726242704,-250.0,0.00022401,2]
[328721161,1717726242714,-1006.40899435,0.00022472,2]
[328721162,1717726242723,-19908.66173319,0.000225,2]
[328721163,1717726242733,-363.55661939,0.000225,2]
[328721164,1717726242743,-1702.50259544,0.00022621,2]
[328721165,1717726242755,-377.29,0.00022755,2]
[328721166,1717726242765,-176.8685142,0.00023,2]
[328721167,1717726242775,-250.0,0.00023279,2]
[328721168,1717726242784,-1702.50259544,0.00023835,2]
[328721169,1717726242794,-166.07,0.00024196,2]
[328721170,1717726242804,-250.0,0.0002422,2]
[328721171,1717726242816,-180.0,0.0002423,2]
[328721172,1717726242827,-165.61,0.00024384,2]
[328721173,1717726242837,-888.31089106,0.00024999,2]
[328721174,1717726242849,-507.276,0.00024999,2]
[328721190,1717726243605,-2070.99156713,0.00024999,2]
[328721191,1717726243616,-3327.60683346,0.00024999,2]
[328721192,1717726243626,-1250.0,0.00025,2]
[328721193,1717726243635,-329.06839701,0.00025,5]
[328721194,1717726243644,-89.14148042,0.00025019,2]
[328721195,1717726243656,-288.14851958,0.00025019,2]
[328721196,1717726243665,-204.73,0.00025032,2]
[328721197,1717726243674,-1702.50259544,0.00025048,2]
[328721198,1717726243684,-484.0,0.000251,5]
[328721199,1717726243701,-1000.0,0.00025712,2]
[328721200,1717726243716,-172.61,0.00025752,2]
[328721201,1717726243726,-525.00963216,0.00025939,2]
[328721202,1717726243736,-500.0,0.00025939,2]
[328721203,1717726243747,-1702.50259544,0.00026261,2]
[328721204,1717726243759,-50.11935291,0.00026432,2]
[328721205,1717726243773,-116.91064709,0.00026432,2]
[328721206,1717726243784,-454.28832354,0.00026698,2]
[328721207,1717726243794,-455.94429013,0.00026799,2]
[328721208,1717726243805,-500.0,0.00026799,2]
[328721209,1717726243816,-500.0,0.00026799,2]
[328721210,1717726243828,-500.0,0.00026799,2]
[328721211,1717726243838,-500.0,0.00026799,2]
[328721212,1717726243848,-157.11012686,0.00026799,2]
[328721213,1717726243858,-402.51887238,0.00026799,2]
[328721214,1717726243869,-500.0,0.00026799,2]
[328721215,1717726243879,-500.0,0.00026799,2]
[328721216,1717726243889,-500.0,0.00026799,2]
[328721217,1717726243900,-352.68517705,0.00026799,2]
[328721218,1717726243910,-500.0,0.00026799,2]
[328721219,1717726243920,-57.80416317,0.000268,10]
[328721220,1717726243932,-676.2737487,0.000268,10]
[328721221,1717726243944,-42185.01105573,0.000268,10]
[328721222,1717726243956,-11496.6,0.000268,10]
[328721223,1717726244020,-1247.09432814,0.000268,10]
[328721224,1717726244032,-7683.1040002,0.000268,10]
[328721225,1717726244044,-250199.33374779,0.000268,10]
[328721226,1717726244056,-29426.51523216,0.000268,10]
[328721227,1717726244068,-97613.8774455,0.000268,10]
[328721231,1717726246290,-7129.40640584,0.000268,10]
[328721232,1717726246512,-5999.9444519,0.000268,10]
[328721387,1717727432476,-226.6238354,0.000201,2]
[328721388,1717727432486,-388.71,0.00022987,2]
[328721389,1717727432496,-176.8685142,0.00024383,2]
[328721390,1717727432506,-154.64,0.00024384,2]
[328721392,1717727432515,-148.3528844,0.00024652,2]
[328721393,1717727432527,-599.37293832,0.00024652,2]
[328721394,1717727432538,-252.27417728,0.00024652,2]
[328721395,1717727432547,-134.36319385,0.00024772,2]
[328721396,1717727432763,-63.59680615,0.00024772,2]
[328721397,1717727432773,-691.49865397,0.00024806,2]
[328721398,1717727432785,-574.25050338,0.00024806,2]
[328721399,1717727432797,-288.51537332,0.00024806,2]
[328721400,1717727432808,-1370.87546933,0.00024806,2]
[328721401,1717727432820,-54.06601338,0.00024841,2]
[328721402,1717727432831,-145.93398662,0.00024841,2]
[328721403,1717727432842,-250.0,0.00024853,2]
[328721404,1717727432852,-3000.0,0.000249,2]
[328721405,1717727432862,-6794.18529165,0.000249,2]
[328721406,1717727432873,-250.0,0.00024925,2]
[328721407,1717727432882,-200.0,0.00024931,2]
[328721408,1717727432892,-250.0,0.0002495,2]
[328721409,1717727432902,-1250.0,0.00025,2]
[328721410,1717727432912,-1828.93,0.00025038,2]
[328721411,1717727432922,-500.0,0.00025108,2]
[328721412,1717727432932,-170.6,0.00025216,2]
[328721413,1717727432942,-388.71,0.00025251,2]
[328721414,1717727432952,-499.99,0.00025476,2]
[328721415,1717727432962,-12166.13,0.00025786,2]
[328721416,1717727432971,-11471.85,0.00025786,2]
[328721417,1717727432980,-8654.22,0.00025786,2]
[328721418,1717727432990,-1000.0,0.00025873,2]
[328721419,1717727432999,-500.0,0.00025939,2]
[328721420,1717727433009,-1000.0,0.00025992,2]
[328721421,1717727433018,-180.97,0.00026401,2]
[328721422,1717727433028,-1000.0,0.0002652,2]
[328721423,1717727433037,-417.41573839,0.00026572,2]
[328721424,1717727433047,-167.0,0.00026584,2]
[328721425,1717727433056,-1074.08218984,0.00026699,2]
[328721426,1717727433067,-151.10612279,0.00026699,2]
[328721427,1717727433077,-623.44717641,0.00026699,2]
[328721428,1717727433087,-623.44717639,0.000267,2]
[328721429,1717727433096,-425.62564886,0.000267,2]
[328721430,1717727433111,-201.76348237,0.000267,2]
[328721431,1717727433121,-181.22263168,0.000267,2]
[328721432,1717727433131,-623.44717639,0.000267,2]
[328721433,1717727433141,-154.87,0.0002679,2]
[328721434,1717727433151,-195.40469577,0.00026798,2]
[328721435,1717727433160,-500.0,0.00026798,2]
[328721436,1717727433171,-386.79380245,0.00026798,2]
[328721437,1717727433181,-281.6186258,0.00026798,2]
[328721438,1717727433191,-505.80555312,0.00026798,2]
[328721439,1717727433200,-500.0,0.00026798,2]
[328721440,1717727433210,-500.0,0.00026798,2]
[328721441,1717727433220,-532.30652768,0.00026798,2]
[328721442,1717727433230,-409867.27886451,0.00026799,2]
[328721443,1717727433242,-13748.32483707,0.00026799,2]
[328721444,1717727433278,-683.2,0.00026799,2]
[328721445,1717727433290,-4365.73700566,0.00026799,2]
[328721456,1717727438382,-510.74430743,0.00026699,2]
[328721458,1717727438394,-137.17792519,0.00026699,2]
[328721459,1717727438404,-584.57483554,0.00026799,2]
[328721461,1717727438417,-842.61429584,0.00026799,2]
[328721464,1717727438597,-2068.20492216,0.00026799,2]
[328721465,1717727438609,-426.34859777,0.00026799,2]
[328721466,1717727438620,-710.95103928,0.00026799,2]
[328721467,1717727438632,-598.57787043,0.00026799,2]
[328721468,1717727438643,-790.29486892,0.00026799,2]
[328721469,1717727438655,-4036.69014449,0.00026799,2]
[328721470,1717727438667,-639.05757874,0.00026799,2]
[328721471,1717727438845,-1442.26725267,0.00026799,2]
[328721472,1717727438857,-725.54001775,0.00026799,2]
[328721480,1717727441686,-646.23282313,0.00026799,2]
[328721481,1717727442840,-1043.73534817,0.00026799,2]
[328721482,1717727442852,-853.27489442,0.00026799,2]
[328721483,1717727442864,-705.60673035,0.00026799,2]
[328721484,1717727442876,-702.72522388,0.00026799,2]
[328721485,1717727442888,-118832.85659336,0.00026799,2]
[328721486,1717727443082,-678.04050335,0.00026799,2]
[328721488,1717727443094,-585.7403948,0.00026799,2]
[328721517,1717727445683,-740.84703305,0.00026799,2]
[328721518,1717727445695,-5004.89001232,0.00026799,2]
[328721519,1717727445707,-1243.4495538,0.00026799,2]
[328721520,1717727445721,-739.32490532,0.00026799,2]
[328721521,1717727445732,-702.74548527,0.00026799,2]
[328721522,1717727445933,-719.33397016,0.00026799,2]
[328721523,1717727445945,-116233.98694684,0.00026799,2]
[328721524,1717727445955,-1405.51704,0.00026799,2]
[328721525,1717727445964,-520001.49601343,0.000268,10]
[328721526,1717727446181,-726.95012794,0.000268,10]
[328721529,1717727446435,-25556.5892795,0.000268,10]
[328721533,1717727446445,-169.07823965,0.000268,2]
[328721535,1717727446454,-1046.71514559,0.000268,2]
[328721537,1717727446463,-1363.14541054,0.000268,2]
[328721540,1717727446473,-38680.44725992,0.000268,2]
[328721542,1717727446512,-6410.45197162,0.000268,2]
[328721543,1717727446523,-782.82215177,0.000268,2]
[328721560,1717727446681,-728.46863661,0.000268,2]
[328721561,1717727446693,-682.73793506,0.000268,2]
[328721562,1717727446704,-725.47671054,0.000268,2]
[328721563,1717727446929,-490.54982511,0.000268,2]
[328721590,1717727623670,2000.0,0.00014,2]
[328721591,1717727623694,2000.0,0.00014,2]
[328721592,1717727623718,2000.0,0.00014,2]
[328721593,1717727623743,2000.0,0.00014,2]
[328721594,1717727623784,2000.0,0.00014,2]
[328721595,1717727623827,2000.0,0.00014,2]
[328721596,1717727623866,150578.35907268,0.00014,2]
[328721597,1717727655400,548748.97271626,0.00014,2]
[328721599,1717727667395,224175.02158881,0.00014,2]
[328721600,1717727668271,20263.52227418,0.00014,2]
[328721601,1717727682201,20303.86010403,0.00014,2]
[328721602,1717727687347,6410.45197162,0.00014,2]
[328721638,1717728632795,-289.3455407,0.00017259,2]
[328721639,1717728632807,-463.22553927,0.00017259,2]
[328721640,1717728632817,-140.15774354,0.000201,2]
[328721641,1717728632829,-86.46609186,0.000201,2]
[328721642,1717728632838,-292.26390814,0.00022157,2]
[328721643,1717728632851,-238.82589677,0.00022157,2]
[328721644,1717728632863,-366.77954769,0.00022587,2]
[328721645,1717728632875,-35.98045231,0.00022587,2]
[328721646,1717728632885,-176.8685142,0.00023599,2]
[328721647,1717728632895,-65.75981758,0.000236,2]
[328721648,1717728632906,-1115.8023317,0.000236,2]
[328721649,1717728633034,-12325.75547988,0.000236,2]
[328721650,1717728633046,-3499.02376926,0.000236,2]
[328721654,1717728633300,-2211.6319081,0.000236,2]
[328721655,1717728633312,-280.85203042,0.000236,2]
[328721656,1717728633323,-363.2425254,0.000236,2]
[328721657,1717728633335,-946.60826906,0.000236,2]
[328721658,1717728633346,-2333.50701761,0.000236,2]
[328721659,1717728633357,-2207.40403079,0.000236,2]
[328721660,1717728633368,-1325.14524,0.000236,2]
[328721661,1717728633464,-2751.78281236,0.000236,2]
[328721662,1717728633474,-1055.77818754,0.00024,3]
[328721663,1717728633483,-176.44,0.00024376,2]
[328721664,1717728633493,-385.39,0.00024384,2]
[328721665,1717728633503,-2265.28649265,0.00024397,2]
[328721668,1717728638706,-8095.46686384,0.00024397,2]
[328721671,1717728638719,-13529.24664351,0.00024397,2]
[328721673,1717728638729,-250.0,0.00024419,2]
[328721675,1717728638739,-348.01,0.00024426,2]
[328721677,1717728638749,-250.0,0.0002446,2]
[328721679,1717728638759,-200.0,0.00024503,2]
[328721681,1717728638769,-500.0,0.00024505,2]
[328721683,1717728638778,-5580.88,0.0002452,2]
[328721685,1717728638788,-250.0,0.00024555,2]
[328721687,1717728638797,-1000.0,0.00024594,2]
[328721688,1717728638807,-198.62,0.00024604,2]
[328721689,1717728638816,-1400.44,0.00024606,2]
[328721690,1717728638826,-150.0,0.00024652,2]
[328721691,1717728638835,-769.56722651,0.00024681,2]
[328721696,1717728640562,-1173.41277349,0.00024681,2]
[328721697,1717728640571,-170.6,0.00024698,2]
[328721698,1717728640586,-164.57,0.00024735,2]
[328721699,1717728640595,-461.53,0.00024772,2]
[328721700,1717728640604,-517.76,0.00024817,2]
[328721701,1717728640614,-402.76,0.00024851,2]
[328721702,1717728640625,-517.76,0.00024885,2]
[328721703,1717728640635,-863.87257666,0.000249,2]
[328721704,1717728640851,-2136.12742334,0.000249,2]
[328721705,1717728640861,-517.76,0.00024953,2]
[328721706,1717728640871,-175.9,0.00024984,2]
[328721707,1717728640881,-929.93582591,0.00025,2]
[328721708,1717728640891,-517.76,0.00025021,2]
[328721709,1717728640901,-517.76,0.00025089,2]
[328721710,1717728640911,-517.76,0.00025157,2]
[328721711,1717728640921,-497.86,0.00025205,2]
[328721712,1717728640931,-517.76,0.00025225,2]
[328721713,1717728640944,-517.76,0.00025293,2]
[328721714,1717728640957,-427.52,0.00025341,2]
[328721715,1717728640973,-517.76,0.00025362,2]
[328721716,1717728640988,-1000.0,0.00025419,2]
[328721717,1717728641001,-517.76,0.0002543,2]
[328721718,1717728641011,-517.76,0.00025498,2]
[328721719,1717728641022,-517.76,0.00025566,2]
[328721720,1717728641034,-517.76,0.00025634,2]
[328721721,1717728641046,-4888.54,0.00025647,2]
[328721722,1717728641057,-517.76,0.00025702,2]
[328721723,1717728641069,-422.39,0.0002589,2]
[328721724,1717728641082,-353.2,0.0002589,2]
[328721725,1717728641095,-353.2,0.0002589,2]
[328721726,1717728641106,-150.77,0.0002589,2]
[328721727,1717728641117,-422.39,0.0002589,2]
[328721728,1717728641131,-407.98,0.0002589,2]
[328721729,1717728641145,-152.35,0.0002589,2]
[328721730,1717728641158,-301.19,0.0002589,2]
[328721731,1717728641171,-301.18,0.0002589,2]
[328721732,1717728641182,-150.0,0.0002589,2]
[328721733,1717728641195,-526.07,0.0002589,2]
[328721734,1717728641207,-422.39,0.0002589,2]
[328721735,1717728641218,-526.07,0.0002589,2]
[328721736,1717728641230,-150.0,0.0002589,2]
[328721737,1717728641243,-150.0,0.0002589,2]
[328721738,1717728641254,-353.2,0.0002589,2]
[328721739,1717728641266,-526.07,0.0002589,2]
[328721740,1717728641278,-526.07,0.0002589,2]
[328721741,1717728641288,-150.0,0.0002589,2]
[328721742,1717728641298,-150.0,0.0002589,2]
[328721743,1717728641310,-422.39,0.0002589,2]
[328721744,1717728641322,-353.2,0.0002589,2]
[328721745,1717728641335,-526.07,0.0002589,2]